bitfinex/quotes_BTCUSD_20241202
["timestamp","ask_amount","ask_price","bid_price","bid_amount"]
[1733112694253,0.05682028,96397.0,96396.0,0.1]
[1733112694456,0.0466089,96397.0,96396.0,0.2652567]
[1733112694678,0.0466089,96397.0,96396.0,0.26434341]
[1733112695530,0.02309349,96397.0,96396.0,0.26534341]
[1733112696067,0.02609349,96397.0,96396.0,0.26534341]
[1733112697173,0.01497316,96397.0,96396.0,0.26534341]
[1733112698038,0.0017298,96423.0,96397.0,0.37475834]
[1733112698259,0.0017298,96423.0,96397.0,0.47760355]
[1733112699355,0.0017298,96423.0,96397.0,0.27012855]
[1733112699356,0.207426,96420.0,96397.0,0.27012855]
[1733112699602,0.2091908,96404.0,96397.0,0.10284521]
[1733112699811,0.0047298,96398.0,96397.0,0.10284521]
[1733112700073,0.207475,96397.0,96394.0,0.1]
[1733112700267,0.0017298,96398.0,96395.0,0.10284521]
[1733112700476,0.0017298,96398.0,96397.0,0.101]
[1733112700749,0.0017298,96398.0,96397.0,0.20475837]
[1733112700984,0.0017298,96398.0,96397.0,0.20375837]
[1733112701837,0.0107298,96398.0,96397.0,0.20475837]
[1733112702106,0.0027298,96398.0,96397.0,0.20975837]
[1733112702310,0.0027298,96398.0,96397.0,0.25860918]
[1733112702514,0.0027298,96398.0,96397.0,0.25769602]
[1733112702734,0.0027298,96398.0,96397.0,0.25269602]
[1733112702941,0.0027298,96398.0,96397.0,0.25769602]
[1733112703396,0.0017298,96398.0,96397.0,0.20284521]
[1733112703611,0.0017298,96398.0,96397.0,0.10784521]
[1733112703848,0.0017298,96398.0,96397.0,0.21384521]
[1733112703849,0.0027298,96398.0,96397.0,0.21384521]
[1733112704267,0.0017306,96403.0,96402.0,0.1]
[1733112704503,0.0017306,96403.0,96402.0,0.20375831]
[1733112705854,0.2091926,96403.0,96402.0,0.10684521]
[1733112706062,0.2091926,96403.0,96402.0,0.20284521]
[1733112706282,0.2091926,96403.0,96402.0,0.10284521]
[1733112706511,0.2091926,96403.0,96402.0,0.10784521]
[1733112706715,0.2091926,96403.0,96402.0,0.10284521]
[1733112706926,0.2091926,96403.0,96402.0,0.10684521]
[1733112707131,0.2091926,96403.0,96402.0,0.20684521]
[1733112707359,0.2091926,96403.0,96402.0,0.20284521]
[1733112707776,0.2091926,96403.0,96402.0,0.20684521]
[1733112708196,0.2091926,96403.0,96402.0,0.20284521]
[1733112708420,0.2091926,96403.0,96402.0,0.20684521]
[1733112708665,0.2091926,96403.0,96402.0,0.20484521]
[1733112708872,0.2091926,96403.0,96402.0,0.10484521]
[1733112709084,0.2091926,96403.0,96402.0,0.20484521]
[1733112709287,0.2091926,96403.0,96402.0,0.102]
[1733112709498,0.2091926,96403.0,96402.0,0.002]
[1733112709935,0.207476,96397.0,96396.0,0.1]
[1733112710153,0.207476,96397.0,96396.0,0.20284521]
[1733112711285,0.207476,96397.0,96396.0,0.20684521]
[1733112711524,0.207464,96402.0,96396.0,0.20684521]
[1733112711721,0.0017306,96403.0,96402.0,0.1]
[1733112711947,0.0017306,96403.0,96402.0,0.20284521]
[1733112713294,0.0027306,96403.0,96402.0,0.20284521]
[1733112713515,0.023,96400.0,96363.0,0.2288783]
[1733112713729,0.207514,96379.0,96378.0,6.8e-07]
[1733112713946,0.230514,96379.0,96378.0,6.8e-07]
[1733112714368,0.207514,96379.0,96378.0,6.8e-07]
[1733112715069,0.211514,96379.0,96378.0,6.8e-07]
[1733112716106,0.211514,96379.0,96378.0,0.00100068]
[1733112716107,0.220514,96379.0,96378.0,0.00100068]
[1733112717654,0.216514,96379.0,96378.0,0.00100068]
[1733112718120,0.221514,96379.0,96378.0,0.00100068]
[1733112718553,0.212514,96379.0,96378.0,0.10284589]
[1733112719067,0.212514,96379.0,96378.0,0.10384589]
[1733112719068,0.223243,96379.0,96378.0,0.10384589]
[1733112719318,0.223243,96379.0,96378.0,0.10284589]
[1733112719531,0.232243,96379.0,96378.0,0.10384589]
[1733112719753,0.214243,96379.0,96378.0,0.10284589]
[1733112719991,0.214243,96379.0,96378.0,6.8e-07]
[1733112719992,0.209243,96379.0,96378.0,6.8e-07]
[1733112720217,0.236243,96379.0,96378.0,6.8e-07]
[1733112720422,0.239243,96379.0,96378.0,6.8e-07]
[1733112720850,0.236243,96379.0,96378.0,6.8e-07]
[1733112722598,0.236243,96379.0,96346.0,0.0008645]
[1733112722599,0.207583,96347.0,96346.0,0.0008645]
[1733112723671,0.207583,96347.0,96346.0,0.10370971]
[1733112724082,0.207583,96347.0,96346.0,0.10430568]
[1733112725101,0.024729,96379.0,96346.0,0.10430568]
[1733112725102,0.207572,96353.0,96346.0,0.10630568]
[1733112725333,0.207516,96378.0,96347.0,0.10376082]
[1733112725890,0.010729,96379.0,96351.0,0.10284521]
[1733112725891,0.207553,96361.0,96351.0,0.10284521]
[1733112726124,0.207553,96361.0,96346.0,0.00346047]
[1733112726125,0.207539,96368.0,96355.0,0.10284521]
[1733112726367,0.001729,96379.0,96359.0,0.10284521]
[1733112726600,0.20753,96372.0,96362.0,0.10284521]
[1733112726812,0.20753,96372.0,96364.0,0.10284521]
[1733112727061,0.20752,96376.0,96365.0,0.00091475]
[1733112727280,0.209539,96368.0,96366.0,0.10284521]
[1733112727987,0.209539,96368.0,96355.0,0.003]
[1733112727988,0.207563,96356.0,96355.0,0.003]
[1733112728215,0.20755,96362.0,96339.0,0.0808]
[1733112728216,0.207583,96347.0,96339.0,0.0808]
[1733112728873,0.207583,96347.0,96340.0,0.00091585]
[1733112729337,0.207583,96347.0,96328.0,0.27630016]
[1733112729338,0.207583,96347.0,96342.0,0.23025013]
[1733112729781,0.207583,96347.0,96339.0,0.23025013]
[1733112730018,0.207583,96347.0,96346.0,0.00546047]
[1733112730242,0.207583,96347.0,96346.0,0.00146047]
[1733112730462,0.207583,96347.0,96346.0,0.00546047]
[1733112730688,0.207583,96347.0,96346.0,0.2357106]
[1733112730921,0.207583,96347.0,96346.0,0.00146047]
[1733112731161,0.207565,96355.0,96346.0,0.10430568]
[1733112731400,0.207567,96354.0,96352.0,0.23087709]
[1733112731655,0.207499,96386.0,96353.0,0.10376079]
[1733112731873,0.1017306,96403.0,96365.0,0.23086512]
[1733112731874,0.15,96378.0,96365.0,0.23086512]
[1733112732083,0.207532,96371.0,96370.0,0.23084757]
[1733112732292,0.207532,96371.0,96370.0,0.10284521]
[1733112732494,0.20752,96376.0,96370.0,0.10375998]
[1733112732720,0.415041,96376.0,96372.0,0.27721725]
[1733112732968,0.415041,96376.0,96373.0,0.10375986]
[1733112733190,0.1,96410.0,96373.0,0.10375986]
[1733112733191,0.003,96378.0,96373.0,0.38097711]
[1733112733415,0.207491,96390.0,96377.0,0.10284521]
[1733112733626,0.207487,96392.0,96378.0,0.10375909]
[1733112733833,0.20747,96400.0,96378.0,0.1556397]
[1733112734069,0.207466,96402.0,96378.0,0.2039397]
[1733112734287,0.207466,96402.0,96395.0,0.40958243]
[1733112734493,0.207466,96402.0,96399.0,0.40958243]
[1733112734728,0.20764465,96402.0,96400.0,0.10375857]
[1733112735201,0.20764465,96402.0,96401.0,0.40958243]
[1733112735445,0.00417865,96402.0,96401.0,0.10284521]
[1733112735655,0.0017298,96404.0,96402.0,0.207464]
[1733112735882,0.0017298,96404.0,96402.0,0.10284521]
[1733112736790,0.0017298,96404.0,96402.0,0.10375775]
[1733112737026,0.0027306,96403.0,96402.0,0.18122433]
[1733112737651,0.0017306,96403.0,96402.0,0.10284521]
[1733112738124,0.0027306,96403.0,96402.0,0.11175793]
[1733112738550,0.0027306,96403.0,96402.0,0.31922193]
[1733112738824,0.0027306,96403.0,96402.0,0.20681584]
[1733112739022,0.0027306,96403.0,96402.0,0.41519242]
[1733112739242,0.0027306,96403.0,96402.0,0.41427984]
[1733112739685,0.0037306,96403.0,96402.0,0.42227984]
[1733112740038,0.0027306,96403.0,96402.0,0.41427984]
[1733112740251,0.0037306,96403.0,96402.0,0.52227984]
[1733112740425,1e-08,96423.0,96408.0,0.1]
[1733112740672,1e-08,96423.0,96422.0,0.10284521]
[1733112740924,1e-08,96423.0,96422.0,0.10375725]
[1733112741256,1e-08,96423.0,96422.0,0.38135978]
[1733112741550,1e-08,96423.0,96422.0,0.38044774]
[1733112742315,1e-08,96423.0,96422.0,0.10284521]
[1733112742513,1e-08,96423.0,96422.0,0.14088998]
[1733112742727,1e-08,96423.0,96422.0,0.10375728]
[1733112742893,1e-08,96423.0,96422.0,0.10284521]
[1733112743328,1e-08,96423.0,96422.0,0.10984521]
[1733112744412,1e-08,96423.0,96422.0,0.10284521]
[1733112744666,1e-08,96423.0,96422.0,0.11512973]
[1733112744898,1e-08,96423.0,96422.0,0.10477174]
[1733112745121,1e-08,96423.0,96422.0,0.10277174]
[1733112745569,0.00200001,96423.0,96422.0,0.10277174]
[1733112745787,1e-08,96423.0,96422.0,0.10577174]
[1733112746238,0.00200001,96423.0,96422.0,0.10277174]
[1733112746914,0.00200001,96423.0,96401.0,0.00017865]
[1733112746915,0.207464,96402.0,96401.0,0.00017865]
[1733112747151,0.36019797,96402.0,96401.0,0.10302386]
[1733112747606,0.36019797,96402.0,96401.0,0.08241586]
[1733112748269,0.36088146,96402.0,96401.0,0.08241586]
[1733112748510,0.36288146,96402.0,96401.0,0.08241586]
[1733112749142,0.33755646,96402.0,96401.0,0.08341586]
[1733112749364,0.33755646,96402.0,96401.0,0.08241586]
[1733112749365,0.33555646,96402.0,96401.0,0.08241586]
[1733112750254,0.33555646,96402.0,96401.0,0.08441586]
[1733112750478,0.33555646,96402.0,96401.0,0.08641586]
[1733112750725,0.33555646,96402.0,96401.0,0.08441586]
[1733112750960,0.33555646,96402.0,96401.0,0.08241586]
[1733112751181,0.33555646,96402.0,96401.0,0.08441586]
[1733112752043,0.15341746,96402.0,96401.0,0.09495403]
[1733112752362,0.00341746,96402.0,96401.0,0.09586753]
[1733112752568,0.207421,96422.0,96401.0,0.17446753]
[1733112752790,0.0017344,96427.0,96409.0,0.10284521]
[1733112752791,0.00276876,96421.0,96409.0,0.10284521]
[1733112753010,0.207425,96420.0,96410.0,0.00091212]
[1733112753262,0.207417,96424.0,96419.0,0.10284521]
[1733112753471,0.207421,96422.0,96419.0,0.12353406]
[1733112753696,0.207421,96422.0,96420.0,0.00091237]
[1733112753933,0.207421,96422.0,96421.0,0.10284521]
[1733112754558,0.20746,96404.0,96401.0,0.0008641]
[1733112754772,0.20746,96404.0,96402.0,0.10284521]
[1733112755894,0.15,96403.0,96402.0,0.10284521]
[1733112756587,0.15,96403.0,96402.0,0.10384521]
[1733112757042,0.15,96403.0,96402.0,0.10284521]
[1733112757756,0.15,96403.0,96401.0,0.0068641]
[1733112757757,0.207464,96402.0,96401.0,0.0068641]
[1733112758009,0.207464,96402.0,96401.0,0.0008641]
[1733112758473,0.20975903,96402.0,96401.0,0.0008641]
[1733112758930,0.21175903,96402.0,96401.0,0.0008641]
[1733112759149,0.20975903,96402.0,96401.0,0.0008641]
[1733112759377,0.24310148,96402.0,96401.0,0.0008641]
[1733112759612,0.209464,96402.0,96401.0,0.0008641]
[1733112759823,0.21175919,96402.0,96401.0,0.0008641]
[1733112760048,0.23675919,96402.0,96401.0,0.0008641]
[1733112760277,0.234464,96402.0,96401.0,1e-07]
[1733112760500,0.44151403,96402.0,96401.0,1e-07]
[1733112760726,0.64435924,96402.0,96401.0,1e-07]
[1733112760939,0.64935924,96402.0,96401.0,1e-07]
[1733112761438,0.64735924,96402.0,96401.0,1e-07]
[1733112761653,0.65335924,96402.0,96401.0,1e-07]
[1733112761875,0.64635924,96402.0,96401.0,1e-07]
[1733112762100,0.65535924,96402.0,96401.0,1e-07]
[1733112763672,0.35251403,96402.0,96401.0,1e-07]
[1733112763931,0.50251403,96402.0,96401.0,1e-07]
[1733112765512,0.357514,96379.0,96378.0,0.00081608]
[1733112767551,0.358514,96379.0,96378.0,0.00081608]
[1733112768926,0.381514,96379.0,96378.0,0.00081608]
[1733112769877,0.358514,96379.0,96378.0,0.00081608]
[1733112770363,0.208514,96379.0,96378.0,0.10366129]
[1733112771496,0.207514,96379.0,96378.0,0.10366129]
[1733112771726,0.207514,96379.0,96378.0,0.10466129]
[1733112772164,0.207514,96379.0,96378.0,0.10366129]
[1733112772391,0.207514,96379.0,96378.0,0.10566129]
[1733112772852,0.207514,96379.0,96378.0,0.10766129]
[1733112773091,0.207514,96379.0,96378.0,0.10566129]
[1733112773307,0.207514,96379.0,96378.0,0.10766129]
[1733112773759,0.357487,96392.0,96378.0,0.10766129]
[1733112773977,0.15,96392.0,96381.0,0.10284521]
[1733112774207,0.1017298,96430.0,96380.0,0.287511]
[1733112774208,0.24215414,96420.0,96385.0,0.10284521]
[1733112774434,0.24388394,96430.0,96395.0,0.10284521]
[1733112774675,0.0017298,96430.0,96397.0,0.10284521]
[1733112774902,0.0017298,96430.0,96401.0,0.10284521]
[1733112775124,0.207424,96421.0,96401.0,0.22975756]
[1733112775341,0.207424,96421.0,96401.0,0.22884521]
[1733112775566,0.00790678,96402.0,96401.0,0.22884521]
[1733112775791,0.00190678,96402.0,96401.0,0.29322393]
[1733112776021,0.20937078,96402.0,96401.0,0.10284521]
[1733112777226,0.21037078,96402.0,96401.0,0.10984521]
[1733112777458,0.20937078,96402.0,96401.0,0.10284521]
[1733112777909,0.21037078,96402.0,96401.0,0.10884521]
[1733112778142,0.36037078,96402.0,96401.0,0.006]
[1733112778385,0.207514,96379.0,96378.0,0.00081608]
[1733112778601,0.39215414,96390.0,96378.0,0.10366129]
[1733112778841,0.20751,96381.0,96379.0,0.10375946]
[1733112779279,0.20751,96381.0,96379.0,0.10375967]
[1733112779696,0.20751,96381.0,96379.0,0.10284521]
[1733112779925,0.20751,96381.0,96379.0,0.10375967]
[1733112780142,0.207496,96387.0,96379.0,0.10375967]
[1733112780432,0.207473,96398.0,96386.0,0.10284521]
[1733112780664,0.00390678,96402.0,96387.0,0.00091362]
[1733112780892,0.00390678,96402.0,96379.0,0.00806161]
[1733112780893,0.207488,96391.0,96388.0,0.10375851]
[1733112781108,0.207475,96397.0,96388.0,0.10375851]
[1733112781326,0.41495,96397.0,96388.0,0.10375851]
[1733112782006,0.004,96398.0,96388.0,0.10375851]
[1733112782230,0.207488,96391.0,96388.0,0.10375851]
[1733112782453,0.207492,96389.0,96388.0,0.10284521]
[1733112782914,0.207492,96389.0,96378.0,0.00081608]
[1733112782915,0.207514,96379.0,96378.0,0.00081608]
[1733112783898,0.357514,96379.0,96378.0,0.00081608]
[1733112784409,0.357514,96379.0,96378.0,0.10366129]
[1733112784632,0.357514,96379.0,96378.0,0.00081608]
[1733112785077,0.357514,96379.0,96378.0,0.10366129]
[1733112785559,0.358514,96379.0,96378.0,0.10366129]
[1733112785802,0.001,96379.0,96378.0,0.11502742]
[1733112786033,0.001,96379.0,96378.0,0.24532742]
[1733112786736,0.207462,96404.0,96387.0,0.1]
[1733112786973,0.207466,96401.0,96400.0,0.10284521]
[1733112787204,0.207447,96410.0,96401.0,0.01028452]
[1733112787426,0.20746,96404.0,96401.0,0.1140428]
[1733112787660,0.20746,96404.0,96401.0,0.10375828]
[1733112787894,0.15,96403.0,96401.0,0.08727521]
[1733112788118,0.207514,96379.0,96378.0,0.00181608]
[1733112788360,0.207514,96379.0,96378.0,0.10366129]
[1733112788820,0.207514,96379.0,96378.0,0.00081608]
[1733112789534,0.23896226,96379.0,96378.0,0.00381608]
[1733112789997,0.207514,96379.0,96378.0,0.00381608]
[1733112790221,0.23896206,96379.0,96378.0,0.00381608]
[1733112790463,0.23896206,96379.0,96378.0,0.00781608]
[1733112790688,0.23896206,96379.0,96378.0,0.00081608]
[1733112790920,0.23896206,96379.0,96378.0,0.00181608]
[1733112791152,0.23896206,96379.0,96378.0,1e-08]
[1733112791153,0.26196206,96379.0,96378.0,1e-08]
[1733112791374,0.26196206,96379.0,96349.0,0.00091526]
[1733112791614,0.207576,96350.0,96349.0,0.00091526]
[1733112791846,0.207576,96350.0,96335.0,0.00091599]
[1733112792119,0.207576,96350.0,96334.0,0.083]
[1733112792120,0.207576,96350.0,96336.0,0.00091601]
[1733112792358,0.415154,96350.0,96336.0,0.00091601]
[1733112792622,0.207576,96350.0,96349.0,0.001]
[1733112792867,0.207576,96350.0,96349.0,0.00159597]
[1733112793811,0.207576,96350.0,96349.0,0.10344118]
[1733112794039,0.001,96350.0,96349.0,0.10844118]
[1733112794499,0.415142,96353.0,96349.0,0.10344118]
[1733112794732,0.415142,96353.0,96350.0,0.10284521]
[1733112795208,0.1,96385.0,96350.0,0.10284521]
[1733112795209,0.207566,96355.0,96351.0,0.00091598]
[1733112795461,0.207566,96355.0,96352.0,0.10284521]
[1733112796437,0.207571,96353.0,96350.0,0.002]
[1733112796887,0.415142,96353.0,96349.0,0.00259597]
[1733112797122,0.207571,96353.0,96352.0,0.001]
[1733112797346,0.415142,96353.0,96349.0,0.00059597]
[1733112797572,0.207571,96353.0,96352.0,0.001]
[1733112798020,0.415142,96353.0,96349.0,0.00059597]
[1733112798260,0.415142,96353.0,96349.0,0.10344118]
[1733112798558,0.207571,96353.0,96352.0,0.001]
[1733112799020,0.415142,96353.0,96349.0,0.10344118]
[1733112799246,0.207571,96353.0,96352.0,0.001]
[1733112799962,0.23286721,96353.0,96352.0,0.001]
[1733112800208,0.230571,96353.0,96352.0,0.001]
[1733112800924,0.207571,96353.0,96352.0,0.001]
[1733112801384,0.207571,96353.0,96352.0,0.0028646]
[1733112801608,0.2328673,96353.0,96352.0,0.0028646]
[1733112801855,0.230571,96353.0,96352.0,0.0028646]
[1733112802814,0.26193901,96353.0,96352.0,0.0028646]
[1733112803317,0.26193901,96353.0,96352.0,6e-07]
[1733112803754,0.26293901,96353.0,96352.0,6e-07]
[1733112803983,0.207574,96351.0,96349.0,0.00059597]
[1733112804206,0.02529659,96350.0,96349.0,0.00059597]
[1733112805364,0.02529659,96350.0,96349.0,0.00159597]
[1733112805819,0.02529659,96350.0,96349.0,0.00059597]
[1733112806259,0.00229659,96350.0,96349.0,0.00059597]
[1733112806706,0.207574,96351.0,96349.0,0.00059597]
[1733112806933,0.00229646,96350.0,96349.0,0.00059597]
[1733112807159,0.02529646,96350.0,96349.0,0.00059597]
[1733112807851,0.02529646,96350.0,96349.0,0.00159597]
[1733112810408,0.02529646,96350.0,96349.0,9.7e-07]
[1733112811810,0.230578,96349.0,96346.0,4.7e-07]
[1733112812038,0.230583,96347.0,96346.0,4.7e-07]
[1733112812259,0.26191794,96347.0,96346.0,4.7e-07]
[1733112812942,0.230583,96347.0,96346.0,0.00100047]
[1733112813406,0.230583,96347.0,96346.0,4.7e-07]
[1733112813629,0.26192295,96347.0,96346.0,4.7e-07]
[1733112813887,0.330583,96347.0,96346.0,4.7e-07]
[1733112814135,0.57447062,96347.0,96346.0,4.7e-07]
[1733112814367,0.57237062,96347.0,96346.0,4.7e-07]
[1733112814583,0.207669,96307.0,96306.0,0.02087623]
[1733112814798,0.207669,96307.0,96306.0,0.10284521]
[1733112815273,0.207669,96307.0,96298.0,0.0487]
[1733112815486,0.207669,96307.0,96283.0,0.0775]
[1733112815710,0.207669,96307.0,96305.0,0.00104296]
[1733112815933,0.216669,96307.0,96306.0,0.001]
[1733112816891,0.216669,96307.0,96306.0,0.10384521]
[1733112817124,0.217669,96307.0,96306.0,0.10684521]
[1733112817346,0.208669,96307.0,96306.0,0.10584521]
[1733112817568,0.209669,96307.0,96306.0,0.10584521]
[1733112818031,0.208669,96307.0,96306.0,0.10584521]
[1733112818495,0.209669,96307.0,96306.0,0.11084521]
[1733112819467,0.209669,96307.0,96306.0,0.008]
[1733112821981,0.209669,96307.0,96306.0,0.11084521]
[1733112824050,0.209669,96307.0,96306.0,0.1312748]
[1733112824284,0.002,96307.0,96306.0,0.1312748]
[1733112824740,0.002,96307.0,96306.0,0.13219266]
[1733112826347,0.002,96307.0,96306.0,0.22899263]
[1733112826608,0.0778,96369.0,96314.0,0.207653]
[1733112826837,0.03142057,96368.0,96330.0,0.10284521]
[1733112827062,0.03142057,96368.0,96331.0,0.10376137]
[1733112827063,0.207597,96341.0,96331.0,0.10376137]
[1733112827300,0.207587,96345.0,96332.0,0.01037614]
[1733112827526,0.0017298,96350.0,96333.0,0.10376156]
[1733112827755,0.207598,96340.0,96333.0,0.10376156]
[1733112828215,0.0017298,96350.0,96338.0,0.10284521]
[1733112828452,0.0017298,96350.0,96343.0,0.10284521]
[1733112828453,0.207578,96349.0,96343.0,0.10284521]
[1733112828682,0.207578,96349.0,96344.0,0.00091597]
[1733112828906,0.207578,96349.0,96345.0,0.10284521]
[1733112829186,0.415158,96349.0,96345.0,0.10284521]
[1733112829639,0.415158,96349.0,96346.0,0.00091614]
[1733112829860,0.415158,96349.0,96347.0,0.10284521]
[1733112829861,0.207578,96349.0,96347.0,0.10284521]
[1733112830304,0.209578,96349.0,96347.0,0.10284521]
[1733112830579,0.207578,96349.0,96347.0,0.10284521]
[1733112830815,0.001,96349.0,96347.0,0.10284521]
[1733112831048,0.001,96349.0,96348.0,0.00091593]
[1733112831283,0.001,96349.0,96348.0,0.10376114]
[1733112832680,0.0017298,96350.0,96348.0,0.10376114]
[1733112832907,0.0017298,96350.0,96349.0,0.10284521]
[1733112833805,0.0017298,96350.0,96349.0,0.11394762]
[1733112834057,0.0017298,96350.0,96349.0,0.10284521]
[1733112834650,0.0017298,96350.0,96349.0,0.10884521]
[1733112834978,0.207546,96364.0,96349.0,0.10884521]
[1733112835209,0.0017292,96378.0,96363.0,0.10284521]
[1733112835429,0.0017292,96378.0,96377.0,0.10284521]
[1733112835884,0.0017292,96378.0,96377.0,0.1037595]
[1733112837063,0.0023248,96378.0,96377.0,0.1077595]
[1733112837975,0.0063248,96378.0,96377.0,0.10684521]
[1733112838437,0.0023248,96378.0,96377.0,0.10684521]
[1733112838861,0.0023248,96378.0,96377.0,0.10884521]
[1733112839771,0.0017292,96381.0,96377.0,0.24632973]
[1733112840019,0.10173,96445.0,96377.0,0.24632973]
[1733112840020,0.207414,96426.0,96380.0,0.10284521]
[1733112840277,0.00190738,96401.0,96394.0,0.10284521]
[1733112840518,0.00190738,96401.0,96395.0,0.0009135]
[1733112840748,0.207468,96400.0,96396.0,0.10284521]
[1733112841436,0.414938,96400.0,96396.0,0.10284521]
[1733112841646,0.207468,96400.0,96397.0,0.01028452]
[1733112841864,0.207468,96400.0,96398.0,0.10284521]
[1733112843673,0.41723311,96400.0,96396.0,0.001]
[1733112843888,0.207473,96398.0,96396.0,0.001]
[1733112844118,0.415021,96381.0,96367.0,0.00091413]
[1733112844352,0.20752,96376.0,96375.0,0.10284521]
[1733112844638,0.20752,96376.0,96375.0,0.08970421]
[1733112846037,0.207567,96355.0,96353.0,0.0827]
[1733112846259,0.207579,96349.0,96346.0,0.0464]
[1733112846509,0.207579,96349.0,96348.0,0.10284521]
[1733112846733,0.207579,96349.0,96348.0,0.11312973]
[1733112847418,0.20763848,96349.0,96348.0,0.11312973]
[1733112847631,0.20763848,96349.0,96348.0,0.10284521]
[1733112847843,0.21663848,96349.0,96348.0,0.10384521]
[1733112848763,0.21663848,96349.0,96348.0,0.10284521]
[1733112848976,0.20763848,96349.0,96348.0,0.10284521]
[1733112849197,0.21463848,96349.0,96348.0,0.10384521]
[1733112849450,5.948e-05,96349.0,96317.0,0.0782]
[1733112849662,0.207617,96331.0,96328.0,0.10284521]
[1733112849953,0.415234,96331.0,96328.0,0.10284521]
[1733112851546,0.416234,96331.0,96328.0,0.11184521]
[1733112851991,0.417234,96331.0,96328.0,0.11184521]
[1733112852483,0.416234,96331.0,96328.0,0.11184521]
[1733112852699,0.207621,96329.0,96328.0,0.009]
[1733112852910,0.207657,96313.0,96306.0,0.00178209]
[1733112853130,0.207657,96313.0,96307.0,0.10376296]
[1733112853581,0.207658,96312.0,96307.0,0.10376296]
[1733112854332,0.207599,96340.0,96307.0,0.10376296]
[1733112854333,0.1268,96357.0,96311.0,0.10284521]
[1733112854553,0.207609,96335.0,96323.0,0.10284521]
[1733112854785,0.207548,96363.0,96332.0,0.10284521]
[1733112855021,0.0485,96373.0,96340.0,0.10284521]
[1733112855237,0.207574,96351.0,96341.0,0.11404551]
[1733112855450,0.207568,96354.0,96341.0,0.11404551]
[1733112855680,0.415136,96354.0,96341.0,0.11404551]
[1733112855900,0.207582,96348.0,96341.0,0.11404551]
[1733112856147,0.20757,96353.0,96342.0,0.01913455]
[1733112856410,0.008,96357.0,96343.0,0.1037612]
[1733112856623,0.207572,96352.0,96345.0,0.10284521]
[1733112856843,0.207572,96352.0,96346.0,0.02196395]
[1733112857064,0.207572,96352.0,96347.0,0.10284521]
[1733112857529,0.415145,96352.0,96347.0,0.10284521]
[1733112858475,0.417145,96352.0,96347.0,0.10284521]
[1733112859359,0.207576,96350.0,96347.0,0.09784521]
[1733112859622,0.00229628,96351.0,96317.0,0.08291624]
[1733112859623,0.207632,96325.0,96317.0,0.082]
[1733112859841,0.207632,96325.0,96324.0,0.10284521]
[1733112860476,0.00229675,96348.0,96324.0,0.10284521]
[1733112860705,0.0757,96351.0,96324.0,0.10284521]
[1733112860706,0.20763,96325.0,96324.0,0.10284521]
[1733112860931,0.20763,96325.0,96324.0,0.12312199]
[1733112861385,0.20763,96325.0,96324.0,0.13112199]
[1733112861612,0.20763,96325.0,96324.0,0.10584521]
[1733112862122,0.207598,96340.0,96306.0,0.0008649]
[1733112862397,0.05,96343.0,96306.0,0.0008649]
[1733112862398,0.207656,96314.0,96312.0,0.02106199]
[1733112862662,0.207656,96314.0,96313.0,0.10284521]
[1733112863809,0.207656,96314.0,96313.0,0.10344081]
[1733112864289,0.207656,96314.0,96313.0,0.10444081]
[1733112864507,0.207656,96314.0,96313.0,0.10644081]
[1733112864972,0.207656,96314.0,96313.0,0.10444081]
[1733112865220,0.207656,96314.0,96313.0,0.10544081]
[1733112865860,0.207656,96314.0,96313.0,0.0025956]
[1733112866072,0.20995326,96314.0,96313.0,0.0025956]
[1733112866531,0.20995326,96314.0,96313.0,0.0015956]
[1733112866753,0.20995326,96314.0,96313.0,0.0005956]
[1733112866979,0.20995326,96314.0,96313.0,0.0015956]
[1733112867417,0.20995326,96314.0,96313.0,0.0005956]
[1733112867640,0.20995326,96314.0,96313.0,0.0015956]
[1733112870571,0.20995338,96314.0,96313.0,0.0015956]
[1733112873594,0.207701,96292.0,96290.0,0.01589792]
[1733112873829,0.207701,96292.0,96291.0,0.10284521]
[1733112874917,0.208701,96292.0,96291.0,0.10284521]
[1733112875380,0.208701,96292.0,96291.0,0.10279821]
[1733112876128,0.209701,96292.0,96291.0,0.10279821]
[1733112876363,0.208701,96292.0,96290.0,0.00717886]
[1733112876575,0.208701,96292.0,96291.0,0.002]
[1733112876797,0.207701,96292.0,96291.0,0.002]
[1733112877021,0.207701,96292.0,96290.0,0.10302407]
[1733112877256,0.207701,96292.0,96291.0,0.0008652]
[1733112877467,0.207701,96292.0,96291.0,0.0028652]
[1733112877684,0.208701,96292.0,96291.0,0.0088652]
[1733112878144,0.208701,96292.0,96291.0,0.0028652]
[1733112878145,0.207701,96292.0,96291.0,0.0028652]
[1733112878604,0.207701,96292.0,96291.0,0.0048652]
[1733112881888,0.207701,96292.0,96291.0,0.0028652]
[1733112883007,0.207701,96292.0,96291.0,0.0008652]
[1733112883226,0.213701,96292.0,96291.0,0.0018652]
[1733112883493,0.213701,96292.0,96291.0,0.0008652]
[1733112883494,0.209701,96292.0,96291.0,0.0008652]
[1733112883939,0.213701,96292.0,96291.0,0.0018652]
[1733112884160,0.207701,96292.0,96291.0,0.0008652]
[1733112884426,0.002,96292.0,96291.0,0.10371041]
[1733112884647,0.008,96292.0,96291.0,0.10471041]
[1733112884865,0.415392,96295.0,96291.0,0.10371041]
[1733112885085,0.415392,96295.0,96292.0,0.10284521]
[1733112885307,0.207696,96295.0,96292.0,0.10284521]
[1733112886913,0.207696,96295.0,96292.0,0.10384521]
[1733112887845,0.207696,96295.0,96292.0,0.10284521]
[1733112888071,0.208696,96295.0,96292.0,0.10384521]
[1733112888549,0.208696,96295.0,96293.0,0.01048893]
[1733112888550,0.001,96295.0,96293.0,0.01048893]
[1733112888776,0.001,96295.0,96294.0,0.10284521]
[1733112889002,0.001,96295.0,96294.0,0.35284521]
[1733112889248,0.001,96295.0,96294.0,0.47584521]
[1733112889465,0.001,96295.0,96294.0,0.62251123]
[1733112889947,0.415258,96326.0,96299.0,0.1]
[1733112890187,0.207629,96326.0,96313.0,0.10284521]
[1733112890658,0.207628,96327.0,96313.0,0.10274521]
[1733112890881,0.207628,96327.0,96313.0,0.33457468]
[1733112891102,0.207601,96339.0,96313.0,0.33457468]
[1733112891103,0.00229681,96331.0,96313.0,0.10274521]
[1733112891380,0.007,96326.0,96313.0,0.10274521]
[1733112891598,0.207644,96319.0,96313.0,0.10274521]
[1733112892046,0.207644,96319.0,96313.0,0.10374521]
[1733112892265,0.207644,96319.0,96318.0,0.02054023]
[1733112892524,0.207644,96319.0,96318.0,0.10284521]